[Event "European Online Club-ch-B 2021"]
[Site "Online"]
[Date "2021.03.27"]
[Round "5.20"]
[White "Wengholm, Anders"]
[Black "Pillard, Valentin"]
[Result "1-0"]
[ECO "E05"]
[WhiteElo "2198"]
[BlackElo "2103"]
[Annotator "NA"]
[PlyCount "79"]
[EventDate "2021.03.27"]
[EventType "team-tourn"]
[EventCountry "NET"]
[SourceTitle "playchess.com"]
[Source "ChessBase"]
[SourceQuality "1"]
[TimeControl "900+5"]

1. Nf3 {[%emt 0:00:00]} d5 {[%emt 0:00:14]} 2. g3 {[%emt 0:00:07]} Nf6 {[%emt 0:00:02]} 3. Bg2 {[%emt 0:00:03]} e6 {[%emt 0:00:05]} 4. O-O {[%emt 0:00:03]} Be7 {[%emt 0:00:04]} 5. d4 {[%emt 0:00:03]} O-O {[%emt 0:00:03]} 6. c4 {[%emt 0:00:07]} dxc4 {[%emt 0:00:04]} 7. Qc2 {[%emt 0:00:05]} a6 {[%emt 0:00:03]} 8. a4 {[%emt 0:00:04]} Bd7 {[%emt 0:00:04]} 9. Rd1 {[%emt 0:00:05]} Bc6 {[%emt 0:00:38]} 10. Nc3 {[%emt 0:00:06]} Qe8 {[%emt 0:01:31]} 11. e4 {[%emt 0:01:33]} b5 {[%emt 0:00:07]} 12. Ne5 {[%emt 0:00:12]} Bb7 {[%emt 0:00:53]} 13. Bf4 {[%emt 0:00:43]} c5 {[%emt 0:02:07]} 14. d5 {[%emt 0:00:53]} exd5 {[%emt 0:00:02]} 15. exd5 {[%emt 0:00:03]} Bd6 {[%emt 0:02:22]} 16. Re1 {[%emt 0:00:26]} Qd8 {[%emt 0:02:07]} 17. axb5 {[%emt 0:00:07]} Bxe5 {[%emt 0:00:01]} 18. Bxe5 {[%emt 0:00:18]} axb5 {[%emt 0:00:09]} 19. Rxa8 {[%emt 0:01:41]} Bxa8 {[%emt 0:00:03]} 20. Nxb5 {[%emt 0:00:05]} Qa5 {[%emt 0:01:12]} 21. Nc3 {[%emt 0:01:13]} Nxd5 {[%emt 0:00:36]} 22. Qf5 {[%emt 0:03:16]} Ne7 {[%emt 0:02:21]} 23. Qg4 {[%emt 0:00:33]} Ng6 {[%emt 0:00:12]} 24. Bd6 {[%emt 0:00:38]} Rd8 {[%emt 0:00:16]} 25. Bxa8 {[%emt 0:00:15]} Qxa8 {[%emt 0:00:12]} 26. Bc7 {[%emt 0:02:16]} Rf8 {[%emt 0:00:20]} 27. Qxc4 {[%emt 0:00:02]} Qc6 {[%emt 0:00:39]} 28. Nd5 {[%emt 0:00:20]} Na6 {[%emt 0:00:29]} 29. Ba5 {[%emt 0:00:15]} h6 {[%emt 0:00:05]} 30. h4 {[%emt 0:00:11]} h5 {[%emt 0:00:08]} 31. Qe4 {[%emt 0:00:26]} Qb5 {[%emt 0:00:08]} 32. Bc3 {[%emt 0:00:07]} Qb3 {[%emt 0:00:13]} 33. Qf5 {[%emt 0:00:10]} Rd8 {[%emt 0:00:05]} 34. Nf6+ {[%emt 0:01:03]} Kf8 {[%emt 0:00:09]} 35. Qxh5 {[%emt 0:00:14]} Rd1 {[%emt 0:00:02]} 36. Rxd1 {[%emt 0:00:10]} gxf6 {[%emt 0:00:01]} 37. Bxf6 {[%emt 0:00:05]} Nc7 {[%emt 0:00:11]} 38. Rd8+ {[%emt 0:00:04]} Ne8 {[%emt 0:00:02]} 39. Qh6+ {[%emt 0:00:02]} Kg8 {[%emt 0:00:01]} 40. Qg7# {[%emt 0:00:02]} 1-0

[Event "European Online Club-ch-B 2021"]
[Site "Online"]
[Date "2021.03.27"]
[Round "6.1"]
[White "Chlpik, Martin"]
[Black "Sorensen, Hampus"]
[Result "0-1"]
[ECO "D02"]
[WhiteElo "2199"]
[BlackElo "2395"]
[Annotator "NA"]
[PlyCount "76"]
[EventDate "2021.03.27"]
[EventType "team-tourn"]
[EventCountry "NET"]
[SourceTitle "playchess.com"]
[Source "ChessBase"]
[SourceQuality "1"]
[TimeControl "900+5"]

1. d4 {[%emt 0:00:00]} d5 {[%emt 0:00:11]} 2. Bf4 {[%emt 0:00:03]} Nf6 {[%emt 0:00:06]} 3. e3 {[%emt 0:00:03]} c5 {[%emt 0:00:05]} 4. c3 {[%emt 0:00:21]} Nc6 {[%emt 0:00:05]} 5. Nd2 {[%emt 0:00:03]} e6 {[%emt 0:00:06]} 6. Ngf3 {[%emt 0:00:16]} Be7 {[%emt 0:00:04]} 7. Bd3 {[%emt 0:00:04]} Nh5 {[%emt 0:00:04]} 8. Be5 {[%emt 0:02:47]} O-O {[%emt 0:00:04]} 9. g4 {[%emt 0:02:47]} Nf6 {[%emt 0:00:19]} 10. Qc2 {[%emt 0:00:30]} g6 {[%emt 0:00:26]} 11. h4 {[%emt 0:01:14]} c4 {[%emt 0:02:27]} 12. Be2 {[%emt 0:00:03]} Nxg4 {[%emt 0:00:07]} 13. h5 {[%emt 0:00:20]} Ngxe5 {[%emt 0:01:39]} 14. dxe5 {[%emt 0:00:10]} g5 {[%emt 0:01:06]} 15. h6 {[%emt 0:00:44]} Kh8 {[%emt 0:00:11]} 16. Rh5 {[%emt 0:00:42]} Rg8 {[%emt 0:00:46]} 17. O-O-O {[%emt 0:00:04]} Qc7 {[%emt 0:00:21]} 18. Rg1 {[%emt 0:00:16]} g4 {[%emt 0:00:28]} 19. Nd4 {[%emt 0:00:04]} Nxe5 {[%emt 0:00:18]} 20. Nb5 {[%emt 0:00:58]} Qb8 {[%emt 0:00:22]} 21. f4 {[%emt 0:00:04]} gxf3 {[%emt 0:00:34]} 22. Rxg8+ {[%emt 0:01:17]} Kxg8 {[%emt 0:00:03]} 23. Nxf3 {[%emt 0:00:01]} Ng6 {[%emt 0:00:05]} 24. Nbd4 {[%emt 0:00:56]} b5 {[%emt 0:00:46]} 25. Nc6 {[%emt 0:00:06]} Qc7 {[%emt 0:00:14]} 26. Nxe7+ {[%emt 0:00:10]} Qxe7 {[%emt 0:00:02]} 27. Qd2 {[%emt 0:00:52]} Rb8 {[%emt 0:01:00]} 28. Bd1 {[%emt 0:00:49]} b4 {[%emt 0:00:09]} 29. Ne5 {[%emt 0:00:11]} Qf6 {[%emt 0:01:05]} 30. Nc6 {[%emt 0:00:24]} bxc3 {[%emt 0:00:08]} 31. Qxc3 {[%emt 0:00:53]} Qxc3+ {[%emt 0:00:11]} 32. bxc3 {[%emt 0:00:00]} Rb7 {[%emt 0:00:42]} 33. Be2 {[%emt 0:00:11]} Bd7 {[%emt 0:00:09]} 34. Nd4 {[%emt 0:00:07]} f5 {[%emt 0:00:08]} 35. Kc2 {[%emt 0:00:15]} Kf7 {[%emt 0:00:06]} 36. Rh1 {[%emt 0:00:04]} Kf6 {[%emt 0:00:12]} 37. Nf3 {[%emt 0:00:03]} e5 {[%emt 0:00:32]} 38. Rd1 {[%emt 0:00:06]} Ba4+ {[%emt 0:00:01]} 0-1

[Event "European Online Club-ch-B 2021"]
[Site "Online"]
[Date "2021.03.27"]
[Round "6.2"]
[White "Agrest, Inna"]
[Black "Solcan, Martin"]
[Result "1-0"]
[ECO "B35"]
[WhiteElo "2285"]
[BlackElo "2076"]
[Annotator "NA"]
[PlyCount "143"]
[EventDate "2021.03.27"]
[EventType "team-tourn"]
[EventCountry "NET"]
[SourceTitle "playchess.com"]
[Source "ChessBase"]
[SourceQuality "1"]
[TimeControl "900+5"]

1. e4 {[%emt 0:00:00]} c5 {[%emt 0:00:03]} 2. Nf3 {[%emt 0:00:02]} g6 {[%emt 0:00:01]} 3. d4 {[%emt 0:00:02]} cxd4 {[%emt 0:00:01]} 4. Nxd4 {[%emt 0:00:00]} Bg7 {[%emt 0:00:02]} 5. Nc3 {[%emt 0:00:01]} Nc6 {[%emt 0:00:01]} 6. Be3 {[%emt 0:00:02]} Nf6 {[%emt 0:00:02]} 7. Bc4 {[%emt 0:00:01]} O-O {[%emt 0:00:01]} 8. Bb3 {[%emt 0:00:02]} a5 {[%emt 0:00:01]} 9. Ndb5 {[%emt 0:02:23]} d6 {[%emt 0:01:46]} 10. O-O {[%emt 0:01:03]} Ng4 {[%emt 0:00:45]} 11. Bf4 {[%emt 0:01:18]} Bd7 {[%emt 0:01:30]} 12. a4 {[%emt 0:00:06]} Nb4 {[%emt 0:00:34]} 13. h3 {[%emt 0:00:39]} Ne5 {[%emt 0:00:04]} 14. Qe2 {[%emt 0:00:24]} Rc8 {[%emt 0:00:30]} 15. Rad1 {[%emt 0:00:12]} Bc6 {[%emt 0:00:45]} 16. Be3 {[%emt 0:01:46]} Nd7 {[%emt 0:03:32]} 17. f4 {[%emt 0:00:43]} Nc5 {[%emt 0:00:29]} 18. Na7 {[%emt 0:02:40]} Nxe4 {[%emt 0:01:31]} 19. Nxe4 {[%emt 0:00:31]} Bxe4 {[%emt 0:00:02]} 20. Nxc8 {[%emt 0:00:11]} Qxc8 {[%emt 0:00:03]} 21. c3 {[%emt 0:00:08]} Na6 {[%emt 0:00:45]} 22. Kh2 {[%emt 0:00:10]} Kh8 {[%emt 0:00:43]} 23. Bd4 {[%emt 0:00:38]} Qc6 {[%emt 0:00:32]} 24. Rfe1 {[%emt 0:00:56]} f5 {[%emt 0:00:07]} 25. Bc2 {[%emt 0:00:35]} e5 {[%emt 0:00:47]} 26. fxe5 {[%emt 0:00:12]} dxe5 {[%emt 0:00:03]} 27. Bxe4 {[%emt 0:00:17]} fxe4 {[%emt 0:00:28]} 28. Be3 {[%emt 0:00:07]} Nc7 {[%emt 0:01:09]} 29. Rf1 {[%emt 0:00:24]} Nd5 {[%emt 0:00:31]} 30. Rxf8+ {[%emt 0:00:14]} Bxf8 {[%emt 0:00:02]} 31. Qf2 {[%emt 0:00:05]} Kg8 {[%emt 0:00:32]} 32. Kh1 {[%emt 0:00:27]} Bd6 {[%emt 0:00:03]} 33. Qd2 {[%emt 0:00:29]} Nxe3 {[%emt 0:00:08]} 34. Qxe3 {[%emt 0:00:02]} Bc5 {[%emt 0:00:02]} 35. Qg5 {[%emt 0:00:16]} Qe6 {[%emt 0:00:10]} 36. Qd8+ {[%emt 0:00:13]} Bf8 {[%emt 0:00:05]} 37. Rf1 {[%emt 0:00:09]} Qe7 {[%emt 0:00:04]} 38. Qd5+ {[%emt 0:00:06]} Kg7 {[%emt 0:00:02]} 39. Qxe4 {[%emt 0:00:03]} b6 {[%emt 0:00:03]} 40. Re1 {[%emt 0:00:18]} Kg8 {[%emt 0:00:14]} 41. Qxe5 {[%emt 0:00:05]} Qd8 {[%emt 0:00:02]} 42. Qe6+ {[%emt 0:00:04]} Kg7 {[%emt 0:00:03]} 43. Rf1 {[%emt 0:00:03]} Qc7 {[%emt 0:00:04]} 44. Qd5 {[%emt 0:00:08]} Bc5 {[%emt 0:00:02]} 45. Re1 {[%emt 0:00:05]} Qg3 {[%emt 0:00:12]} 46. Qe5+ {[%emt 0:00:06]} Qxe5 {[%emt 0:00:03]} 47. Rxe5 {[%emt 0:00:00]} Kf6 {[%emt 0:00:01]} 48. Re8 {[%emt 0:00:04]} Kf7 {[%emt 0:00:02]} 49. Rh8 {[%emt 0:00:04]} h5 {[%emt 0:00:02]} 50. Rc8 {[%emt 0:00:06]} Ke6 {[%emt 0:00:02]} 51. g3 {[%emt 0:00:04]} Kd5 {[%emt 0:00:14]} 52. b3 {[%emt 0:00:11]} Ke4 {[%emt 0:00:04]} 53. Rd8 {[%emt 0:00:07]} Kf3 {[%emt 0:00:07]} 54. Rg8 {[%emt 0:00:10]} Kxg3 {[%emt 0:00:07]} 55. Rxg6+ {[%emt 0:00:04]} Kxh3 {[%emt 0:00:01]} 56. b4 {[%emt 0:00:10]} axb4 {[%emt 0:00:03]} 57. cxb4 {[%emt 0:00:01]} Bf2 {[%emt 0:00:10]} 58. a5 {[%emt 0:00:05]} bxa5 {[%emt 0:00:12]} 59. bxa5 {[%emt 0:00:00]} h4 {[%emt 0:00:03]} 60. a6 {[%emt 0:00:07]} Bd4 {[%emt 0:00:04]} 61. Rg7 {[%emt 0:00:11]} Bxg7 {[%emt 0:00:06]} 62. a7 {[%emt 0:00:02]} Be5 {[%emt 0:00:02]} 63. a8=Q {[%emt 0:00:03]} Kg4 {[%emt 0:00:09]} 64. Qg8+ {[%emt 0:00:08]} Kf4 {[%emt 0:00:04]} 65. Kg2 {[%emt 0:00:06]} Bf6 {[%emt 0:00:06]} 66. Kh3 {[%emt 0:00:06]} Kf5 {[%emt 0:00:06]} 67. Qg4+ {[%emt 0:00:06]} Ke5 {[%emt 0:00:01]} 68. Kg2 {[%emt 0:00:03]} Kd6 {[%emt 0:00:08]} 69. Kf3 {[%emt 0:00:04]} Ke7 {[%emt 0:00:04]} 70. Ke4 {[%emt 0:00:02]} Kf7 {[%emt 0:00:01]} 71. Kf5 {[%emt 0:00:02]} Be7 {[%emt 0:00:09]} 72. Qg6+ {[%emt 0:00:07]} 1-0

[Event "European Online Club-ch-B 2021"]
[Site "Online"]
[Date "2021.03.27"]
[Round "6.3"]
[White "Lecky, Juraj"]
[Black "Rasti, Arvin"]
[Result "1/2-1/2"]
[ECO "B78"]
[WhiteElo "2070"]
[BlackElo "2195"]
[Annotator "NA"]
[PlyCount "75"]
[EventDate "2021.03.27"]
[EventType "team-tourn"]
[EventCountry "NET"]
[SourceTitle "playchess.com"]
[Source "ChessBase"]
[SourceQuality "1"]
[TimeControl "900+5"]

1. e4 {[%emt 0:00:00]} c5 {[%emt 0:00:11]} 2. Nf3 {[%emt 0:00:03]} d6 {[%emt 0:00:02]} 3. d4 {[%emt 0:00:02]} cxd4 {[%emt 0:00:02]} 4. Nxd4 {[%emt 0:00:00]} Nf6 {[%emt 0:00:04]} 5. Nc3 {[%emt 0:00:01]} g6 {[%emt 0:00:06]} 6. Bc4 {[%emt 0:00:11]} Bg7 {[%emt 0:00:07]} 7. f3 {[%emt 0:01:04]} O-O {[%emt 0:00:09]} 8. Be3 {[%emt 0:00:03]} Nc6 {[%emt 0:00:05]} 9. Qd2 {[%emt 0:00:20]} Bd7 {[%emt 0:00:06]} 10. O-O-O {[%emt 0:00:03]} Rc8 {[%emt 0:00:03]} 11. Bb3 {[%emt 0:00:05]} Ne5 {[%emt 0:00:03]} 12. Kb1 {[%emt 0:00:05]} Nc4 {[%emt 0:00:06]} 13. Bxc4 {[%emt 0:00:03]} Rxc4 {[%emt 0:00:02]} 14. g4 {[%emt 0:00:05]} b5 {[%emt 0:00:15]} 15. h4 {[%emt 0:00:17]} b4 {[%emt 0:01:37]} 16. Nd5 {[%emt 0:01:49]} e6 {[%emt 0:01:20]} 17. Nxb4 {[%emt 0:02:11]} Qb8 {[%emt 0:00:42]} 18. c3 {[%emt 0:00:24]} Rfc8 {[%emt 0:00:19]} 19. Nb3 {[%emt 0:01:16]} d5 {[%emt 0:03:08]} 20. g5 {[%emt 0:01:03]} Nh5 {[%emt 0:00:43]} 21. Rc1 {[%emt 0:00:52]} Qb5 {[%emt 0:02:03]} 22. Nd4 {[%emt 0:01:16]} Qb7 {[%emt 0:00:25]} 23. exd5 {[%emt 0:00:28]} exd5 {[%emt 0:00:08]} 24. Nb3 {[%emt 0:00:32]} Bf5+ {[%emt 0:00:26]} 25. Ka1 {[%emt 0:00:02]} d4 {[%emt 0:00:31]} 26. Bxd4 {[%emt 0:02:27]} Ng3 {[%emt 0:01:08]} 27. Rhe1 {[%emt 0:01:02]} Qxf3 {[%emt 0:00:30]} 28. Bxg7 {[%emt 0:00:35]} Kxg7 {[%emt 0:00:08]} 29. Qd6 {[%emt 0:00:39]} Ne4 {[%emt 0:00:40]} 30. Qe5+ {[%emt 0:00:10]} Kg8 {[%emt 0:00:03]} 31. Nd5 {[%emt 0:00:06]} Rd8 {[%emt 0:01:05]} 32. Rxe4 {[%emt 0:00:15]} Bxe4 {[%emt 0:00:21]} 33. Nf6+ {[%emt 0:00:05]} Kf8 {[%emt 0:00:02]} 34. Nxh7+ {[%emt 0:00:03]} Kg8 {[%emt 0:00:02]} 35. Nf6+ {[%emt 0:00:01]} Kf8 {[%emt 0:00:03]} 36. Nh7+ {[%emt 0:00:05]} Kg8 {[%emt 0:00:09]} 37. Nf6+ {[%emt 0:00:01]} Kf8 {[%emt 0:00:03]} 38. Nh7+ {[%emt 0:00:02]} 1/2-1/2

[Event "European Online Club-ch-B 2021"]
[Site "Online"]
[Date "2021.03.27"]
[Round "6.4"]
[White "Bjorklund, Thomas"]
[Black "Nikel, Rastislav"]
[Result "0-1"]
[ECO "A04"]
[WhiteElo "2174"]
[BlackElo "1984"]
[Annotator "NA"]
[PlyCount "114"]
[EventDate "2021.03.27"]
[EventType "team-tourn"]
[EventCountry "NET"]
[SourceTitle "playchess.com"]
[Source "ChessBase"]
[SourceQuality "1"]
[TimeControl "900+5"]

1. e4 {[%emt 0:00:00]} c5 {[%emt 0:00:04]} 2. Nf3 {[%emt 0:00:07]} d6 {[%emt 0:00:03]} 3. c3 {[%emt 0:00:02]} Nf6 {[%emt 0:00:03]} 4. Qe2 {[%emt 0:00:02]} Nc6 {[%emt 0:00:02]} 5. g3 {[%emt 0:00:02]} g6 {[%emt 0:00:05]} 6. Bg2 {[%emt 0:00:02]} Bg7 {[%emt 0:00:02]} 7. O-O {[%emt 0:00:01]} O-O {[%emt 0:00:02]} 8. Re1 {[%emt 0:00:02]} Qc7 {[%emt 0:00:25]} 9. d4 {[%emt 0:00:06]} cxd4 {[%emt 0:00:03]} 10. cxd4 {[%emt 0:00:01]} Bg4 {[%emt 0:00:21]} 11. Qe3 {[%emt 0:00:14]} e5 {[%emt 0:00:11]} 12. dxe5 {[%emt 0:00:05]} dxe5 {[%emt 0:00:06]} 13. Nc3 {[%emt 0:00:04]} Bxf3 {[%emt 0:00:15]} 14. Bxf3 {[%emt 0:00:16]} Nd4 {[%emt 0:00:04]} 15. Bd1 {[%emt 0:00:04]} b5 {[%emt 0:00:56]} 16. Ne2 {[%emt 0:00:16]} Ng4 {[%emt 0:00:10]} 17. Qa3 {[%emt 0:00:11]} b4 {[%emt 0:00:57]} 18. Qd3 {[%emt 0:00:16]} Rad8 {[%emt 0:02:19]} 19. Nxd4 {[%emt 0:00:05]} Rxd4 {[%emt 0:00:03]} 20. Qc2 {[%emt 0:00:08]} Qd7 {[%emt 0:00:30]} 21. Qe2 {[%emt 0:00:54]} Rd8 {[%emt 0:02:40]} 22. Bg5 {[%emt 0:00:49]} Nf6 {[%emt 0:00:02]} 23. f3 {[%emt 0:00:26]} h6 {[%emt 0:00:09]} 24. Be3 {[%emt 0:00:03]} Rd6 {[%emt 0:00:11]} 25. Bc5 {[%emt 0:00:35]} Rd2 {[%emt 0:00:13]} 26. Qf1 {[%emt 0:00:13]} Rxb2 {[%emt 0:01:22]} 27. Bb3 {[%emt 0:00:22]} Qc7 {[%emt 0:01:13]} 28. Rac1 {[%emt 0:00:33]} Qa5 {[%emt 0:00:27]} 29. Be3 {[%emt 0:00:27]} Bf8 {[%emt 0:00:42]} 30. Qc4 {[%emt 0:00:26]} Rd7 {[%emt 0:00:13]} 31. Rcd1 {[%emt 0:00:10]} Qc7 {[%emt 0:01:07]} 32. Qxc7 {[%emt 0:00:25]} Rxc7 {[%emt 0:00:03]} 33. Rd8 {[%emt 0:00:14]} g5 {[%emt 0:00:09]} 34. h4 {[%emt 0:00:07]} Nh7 {[%emt 0:01:43]} 35. Bc1 {[%emt 0:00:10]} Rb1 {[%emt 0:00:31]} 36. Rdd1 {[%emt 0:00:22]} Bc5+ {[%emt 0:00:08]} 37. Kg2 {[%emt 0:00:04]} Bd4 {[%emt 0:00:04]} 38. hxg5 {[%emt 0:00:13]} hxg5 {[%emt 0:00:04]} 39. Kh3 {[%emt 0:00:32]} Kg7 {[%emt 0:00:02]} 40. Kg4 {[%emt 0:00:17]} Nf6+ {[%emt 0:00:03]} 41. Kxg5 {[%emt 0:00:07]} Rcxc1 {[%emt 0:00:03]} 42. Rxc1 {[%emt 0:00:14]} Rxc1 {[%emt 0:00:02]} 43. Rxc1 {[%emt 0:00:02]} Be3+ {[%emt 0:00:02]} 44. Kf5 {[%emt 0:00:01]} Bxc1 {[%emt 0:00:02]} 45. Kxe5 {[%emt 0:00:01]} Be3 {[%emt 0:00:07]} 46. Kf5 {[%emt 0:00:06]} Nd7 {[%emt 0:00:04]} 47. e5 {[%emt 0:00:04]} Nc5 {[%emt 0:00:07]} 48. Bd5 {[%emt 0:00:05]} a5 {[%emt 0:00:03]} 49. g4 {[%emt 0:00:06]} a4 {[%emt 0:00:03]} 50. Bc4 {[%emt 0:00:09]} a3 {[%emt 0:00:07]} 51. f4 {[%emt 0:00:14]} b3 {[%emt 0:00:02]} 52. axb3 {[%emt 0:00:07]} a2 {[%emt 0:00:03]} 53. b4 {[%emt 0:00:01]} a1=Q {[%emt 0:00:03]} 54. bxc5 {[%emt 0:00:01]} Qb1+ {[%emt 0:00:07]} 55. Kg5 {[%emt 0:00:05]} Qg6+ {[%emt 0:00:05]} 56. Kh4 {[%emt 0:00:03]} Bxf4 {[%emt 0:00:03]} 57. Bd3 {[%emt 0:00:03]} Qh6# {[%emt 0:00:02]} 0-1

[Event "European Online Club-ch-B 2021"]
[Site "Online"]
[Date "2021.03.27"]
[Round "6.5"]
[White "Brunner, Nicolas"]
[Black "Demidov, Mikhail"]
[Result "1/2-1/2"]
[ECO "E14"]
[WhiteElo "2418"]
[BlackElo "2523"]
[Annotator "ChessBase"]
[PlyCount "82"]
[EventDate "2021.03.27"]
[EventType "team-tourn"]
[EventCountry "NET"]
[SourceTitle "playchess.com"]
[Source "ChessBase"]
[SourceQuality "1"]
[TimeControl "900+5"]

1. d4 {[%emt 0:00:00]} e6 {[%emt 0:00:09]} 2. Nf3 {[%emt 0:00:02]} Nf6 {[%emt 0:00:02]} 3. c4 {[%emt 0:00:02]} Bb4+ {[%emt 0:00:02]} 4. Nbd2 {[%emt 0:00:02]} O-O {[%emt 0:00:02]} 5. a3 {[%emt 0:00:02]} Bxd2+ {[%emt 0:00:02]} 6. Qxd2 {[%emt 0:00:02]} d6 {[%emt 0:00:01]} 7. b4 {[%emt 0:00:09]} Qe7 {[%emt 0:00:04]} 8. Bb2 {[%emt 0:00:02]} b6 {[%emt 0:00:05]} 9. e3 {[%emt 0:00:02]} Bb7 {[%emt 0:00:01]} 10. Be2 {[%emt 0:00:00]} Nbd7 {[%emt 0:00:02]} 11. O-O {[%emt 0:00:03]} a5 {[%emt 0:00:03]} 12. Qc2 {[%emt 0:01:00]} Be4 {[%emt 0:00:53]} 13. Qb3 {[%emt 0:00:06]} Rfb8 {[%emt 0:00:06]} 14. Rfd1 {[%emt 0:00:22]} h6 {[%emt 0:01:52]} 15. Ne1 {[%emt 0:01:43]} c6 {[%emt 0:00:53]} 16. f3 {[%emt 0:00:19]} Bh7 {[%emt 0:00:14]} 17. e4 {[%emt 0:00:35]} d5 {[%emt 0:02:16]} 18. e5 {[%emt 0:00:03]} Ne8 {[%emt 0:00:42]} 19. cxd5 {[%emt 0:00:51]} cxd5 {[%emt 0:00:28]} 20. f4 {[%emt 0:01:17]} Nf8 {[%emt 0:03:40]} 21. Nf3 {[%emt 0:00:09]} Ng6 {[%emt 0:00:10]} 22. g3 {[%emt 0:00:09]} Qa7 {[%emt 0:00:10]} 23. Rdc1 {[%emt 0:00:14]} Ne7 {[%emt 0:00:09]} 24. b5 {[%emt 0:00:25]} Rc8 {[%emt 0:01:26]} 25. a4 {[%emt 0:00:02]} Rxc1+ {[%emt 0:00:08]} 26. Rxc1 {[%emt 0:00:02]} Rc8 {[%emt 0:00:02]} 27. Rxc8 {[%emt 0:00:03]} Nxc8 {[%emt 0:00:01]} 28. Qc3 {[%emt 0:00:37]} Qc7 {[%emt 0:00:04]} 29. Bd1 {[%emt 0:00:40]} Qxc3 {[%emt 0:00:21]} 30. Bxc3 {[%emt 0:00:02]} f6 {[%emt 0:00:28]} 31. Kf2 {[%emt 0:00:07]} Kf7 {[%emt 0:00:02]} 32. g4 {[%emt 0:00:23]} Ke7 {[%emt 0:01:13]} 33. Bb2 {[%emt 0:00:04]} Kf7 {[%emt 0:00:09]} 34. Ba3 {[%emt 0:00:04]} Ne7 {[%emt 0:00:04]} 35. Ke3 {[%emt 0:00:10]} Bg6 {[%emt 0:00:20]} 36. h3 {[%emt 0:00:12]} Bh7 {[%emt 0:00:02]} 37. Bb3 {[%emt 0:00:16]} Nc7 {[%emt 0:00:32]} 38. Bd6 {[%emt 0:00:14]} Ne8 {[%emt 0:00:02]} 39. Ba3 {[%emt 0:00:11]} Nc7 {[%emt 0:00:02]} 40. Kd2 {[%emt 0:03:00]} Be4 {[%emt 0:00:04]} 41. Ke3 {[%emt 0:00:04]} Bh7 {[%emt 0:00:03]} 1/2-1/2

[Event "European Online Club-ch-B 2021"]
[Site "Online"]
[Date "2021.03.27"]
[Round "6.6"]
[White "Baltag, Iulian"]
[Black "Mathieu, Phileas"]
[Result "1/2-1/2"]
[ECO "A57"]
[WhiteElo "2393"]
[BlackElo "2240"]
[Annotator "NA"]
[PlyCount "141"]
[EventDate "2021.03.27"]
[EventType "team-tourn"]
[EventCountry "NET"]
[SourceTitle "playchess.com"]
[Source "ChessBase"]
[SourceQuality "1"]
[TimeControl "900+5"]

1. d4 {[%emt 0:00:00]} Nf6 {[%emt 0:00:07]} 2. c4 {[%emt 0:00:10]} c5 {[%emt 0:00:03]} 3. d5 {[%emt 0:00:12]} b5 {[%emt 0:00:02]} 4. cxb5 {[%emt 0:00:06]} a6 {[%emt 0:00:01]} 5. b6 {[%emt 0:00:01]} e6 {[%emt 0:00:02]} 6. Nc3 {[%emt 0:00:04]} Nxd5 {[%emt 0:00:03]} 7. Nxd5 {[%emt 0:00:04]} exd5 {[%emt 0:00:01]} 8. Qxd5 {[%emt 0:00:02]} Nc6 {[%emt 0:00:01]} 9. e4 {[%emt 0:00:07]} Be7 {[%emt 0:00:02]} 10. Bc4 {[%emt 0:00:04]} O-O {[%emt 0:00:02]} 11. Nf3 {[%emt 0:00:02]} Rb8 {[%emt 0:00:01]} 12. O-O {[%emt 0:00:06]} Rxb6 {[%emt 0:00:08]} 13. Qh5 {[%emt 0:00:18]} d6 {[%emt 0:01:29]} 14. Rd1 {[%emt 0:00:16]} Be6 {[%emt 0:00:26]} 15. Bxe6 {[%emt 0:01:01]} fxe6 {[%emt 0:00:05]} 16. Be3 {[%emt 0:00:02]} Rxb2 {[%emt 0:01:23]} 17. Rac1 {[%emt 0:02:11]} Rxa2 {[%emt 0:03:07]} 18. Bxc5 {[%emt 0:00:17]} Ra5 {[%emt 0:01:32]} 19. Qg4 {[%emt 0:00:14]} Qd7 {[%emt 0:00:18]} 20. h3 {[%emt 0:00:21]} Kh8 {[%emt 0:01:02]} 21. Bd4 {[%emt 0:01:30]} Bf6 {[%emt 0:02:37]} 22. Bxf6 {[%emt 0:01:38]} gxf6 {[%emt 0:01:11]} 23. Rd2 {[%emt 0:00:58]} Ne5 {[%emt 0:01:46]} 24. Nxe5 {[%emt 0:00:32]} Rxe5 {[%emt 0:00:04]} 25. Rcd1 {[%emt 0:00:04]} Rg8 {[%emt 0:00:41]} 26. Qf3 {[%emt 0:00:09]} Qg7 {[%emt 0:00:21]} 27. Rxd6 {[%emt 0:00:10]} f5 {[%emt 0:00:02]} 28. g3 {[%emt 0:01:24]} fxe4 {[%emt 0:00:27]} 29. Qe3 {[%emt 0:00:04]} a5 {[%emt 0:00:13]} 30. Rd7 {[%emt 0:00:48]} Qg5 {[%emt 0:00:04]} 31. Qa7 {[%emt 0:00:36]} Qg6 {[%emt 0:00:07]} 32. Qc7 {[%emt 0:00:28]} Rg5 {[%emt 0:00:04]} 33. Qc3+ {[%emt 0:00:14]} e5 {[%emt 0:00:07]} 34. Rc7 {[%emt 0:00:12]} Qe6 {[%emt 0:00:03]} 35. h4 {[%emt 0:00:31]} R5g7 {[%emt 0:00:05]} 36. Rc5 {[%emt 0:00:22]} Qh3 {[%emt 0:00:06]} 37. Qxe5 {[%emt 0:01:25]} e3 {[%emt 0:00:02]} 38. Rc2 {[%emt 0:00:54]} exf2+ {[%emt 0:00:06]} 39. Rxf2 {[%emt 0:00:02]} Qxh4 {[%emt 0:00:07]} 40. Rd3 {[%emt 0:00:05]} Qb4 {[%emt 0:00:05]} 41. Rd7 {[%emt 0:00:11]} Qb1+ {[%emt 0:00:06]} 42. Kh2 {[%emt 0:00:03]} Qg6 {[%emt 0:00:02]} 43. Rff7 {[%emt 0:00:11]} Qh6+ {[%emt 0:00:03]} 44. Kg2 {[%emt 0:00:03]} Qc6+ {[%emt 0:00:04]} 45. Kh2 {[%emt 0:00:08]} Qc2+ {[%emt 0:00:06]} 46. Kh3 {[%emt 0:00:06]} Qg6 {[%emt 0:00:10]} 47. Rxg7 {[%emt 0:00:02]} Qh6+ {[%emt 0:00:05]} 48. Kg2 {[%emt 0:00:04]} Qxg7 {[%emt 0:00:04]} 49. Rxg7 {[%emt 0:00:03]} Rxg7 {[%emt 0:00:01]} 50. Qxa5 {[%emt 0:00:01]} h6 {[%emt 0:00:05]} 51. Qf5 {[%emt 0:00:03]} Rg5 {[%emt 0:00:02]} 52. Qf7 {[%emt 0:00:03]} Rg7 {[%emt 0:00:02]} 53. Qf6 {[%emt 0:00:03]} Kh7 {[%emt 0:00:01]} 54. Kh3 {[%emt 0:00:02]} Rg6 {[%emt 0:00:10]} 55. Qe7+ {[%emt 0:00:03]} Rg7 {[%emt 0:00:01]} 56. Qe4+ {[%emt 0:00:01]} Kh8 {[%emt 0:00:07]} 57. g4 {[%emt 0:00:03]} Rg5 {[%emt 0:00:03]} 58. Kh4 {[%emt 0:00:07]} Kg7 {[%emt 0:00:02]} 59. Qe7+ {[%emt 0:00:03]} Kg6 {[%emt 0:00:02]} 60. Qf8 {[%emt 0:00:04]} Kh7 {[%emt 0:00:02]} 61. Qf7+ {[%emt 0:00:02]} Kh8 {[%emt 0:00:02]} 62. Kh3 {[%emt 0:00:09]} Rg7 {[%emt 0:00:03]} 63. Qh5 {[%emt 0:00:03]} Kh7 {[%emt 0:00:03]} 64. Kg3 {[%emt 0:00:01]} Rg5 {[%emt 0:00:02]} 65. Qf7+ {[%emt 0:00:02]} Rg7 {[%emt 0:00:01]} 66. Qf5+ {[%emt 0:00:01]} Kg8 {[%emt 0:00:01]} 67. Kf4 {[%emt 0:00:02]} Rf7 {[%emt 0:00:03]} 68. Ke5 {[%emt 0:00:11]} Rxf5+ {[%emt 0:00:02]} 69. Kxf5 {[%emt 0:00:04]} Kf7 {[%emt 0:00:02]} 70. g5 {[%emt 0:00:01]} hxg5 {[%emt 0:00:06]} 71. Kxg5 {[%emt 0:00:01]} 1/2-1/2